[Event "Prague Festival-Challengers 2022"]
[Site "Prague"]
[Date "2022.06.11"]
[Round "4.1"]
[White "Keymer, Vincent"]
[Black "Niemann, Hans Moke"]
[Result "1/2-1/2"]
[ECO "D38"]
[WhiteElo "2667"]
[BlackElo "2656"]
[Annotator "TA"]
[PlyCount "119"]
[EventDate "2022.06.07"]
[EventType "tourn"]
[EventCountry "CZE"]
[SourceTitle "playchess.com"]
[Source "ChessBase"]
[SourceQuality "1"]
[TimeControl "40/5400+30:1800+30"]

{[%evp 12,119,21,21,12,42,33,0,7,5,16,30,32,24,24,24,25,27,0,28,64,7,15,17,83,56,79,69,81,77,83,80,79,88,88,86,100,100,99,99,99,98,118,118,118,118,118,118,118,118,118,118,118,118,133,122,135,89,146,146,146,161,154,5,5,8,8,0,8,0,0,0,0,0,0,0,0,0,0,0,0,0,0,0,0,0,0,0,0,0,0,0,0,0,0,0,0,0,0,0,0,0,0,0,0,0,0,0,0,0]} 1. d4 {[%emt 0:00:03]} Nf6 {[%emt 0:03:09]} 2. c4 {[%emt 0:00:04]} e6 {[%emt 0:00:22]} 3. Nf3 {[%emt 0:00:04]} d5 {[%emt 0:00:14]} 4. Nc3 {[%emt 0:00:04]} Bb4 {[%emt 0:01:18]} 5. Qa4+ {[%emt 0:00:32]} Nc6 {[%emt 0:01:04]} 6. e3 {[%emt 0:00:03]} O-O {[%emt 0:00:11]} 7. Bd2 {[%emt 0:00:03]} Re8 {[%emt 0:00:40] D38: Queen's Gambit Declined: Ragozin Defence (4 Nf3 Bb4).} 8. a3 {[%emt 0:00:19]} Bf8 {[%emt 0:00:16]} 9. h3 {[%emt 0:01:37]} h6 {[%emt 0:10:30]} 10. Rd1 {[%emt 0:10:31] [#]} Bd7 $146 {[%emt 0:05:29][%cal Oc6d4]} ({Predecessor:} 10... a6 11. Qc2 e5 12. dxe5 Nxe5 13. Nxe5 Rxe5 14. cxd5 Nxd5 15. Be2 c6 16. e4 Nf6 17. Bf4 Qe8 18. Bxe5 Qxe5 19. O-O Bc5 20. Kh1 g5 21. Nd5 Nxe4 22. Qxe4 {1-0 (22) Najer,E (2648)-Drygalov,A (2500) Chess.com INT 2021}) 11. Qc2 $1 {[%emt 0:01:55]} e5 {[%emt 0:00:11]} 12. dxe5 {[%emt 0:10:51]} Nxe5 {[%emt 0:00:11]} 13. Nxd5 {[%emt 0:19:15]} Nxf3+ {[%emt 0:00:46]} 14. gxf3 {[%emt 0:00:04]} Nxd5 {[%emt 0:00:09]} 15. cxd5 {[%emt 0:00:05]} c6 {[%emt 0:00:09]} 16. Qb3 {[%emt 0:08:25]} (16. h4 $1 $14) 16... cxd5 $11 {[%emt 0:05:33]} 17. Qxd5 {[%emt 0:03:39]} Qc8 {[%emt 0:00:09]} (17... Ba4 $11 18. Qxd8 (18. Ba5 Qh4 $15) 18... Rexd8) 18. Bb5 {[%emt 0:04:15]} Rd8 {[%emt 0:15:09]} 19. Bc3 {[%emt 0:07:58][%cal Rb5d7] White is more active.} Bxb5 {[%emt 0:06:10]} 20. Qxb5 {[%emt 0:00:05]} Rxd1+ {[%emt 0:00:08]} 21. Kxd1 {[%emt 0:00:03]} Bxa3 {[%emt 0:00:46]} 22. Bxg7 $1 {[%emt 0:09:05]} Kxg7 {[%emt 0:00:14]} 23. Rg1+ {[%emt 0:02:15]} Kf6 {[%emt 0:07:00][%cal Oc8c7]} 24. bxa3 $16 {[%emt 0:04:11][%mdl 4096] Endgame KQR-KQR} Qc3 {[%emt 0:00:07] ( -> ...Rd8+)} 25. Rg4 $1 {[%emt 0:02:47] Hoping for Qd5. Really sharp!} Rd8+ {[%emt 0:00:07] [#]} 26. Ke2 $1 {[%emt 0:00:03]} Rd2+ {[%emt 0:01:18]} 27. Kf1 {[%emt 0:00:03] Qe8 is the strong threat.} Qd3+ {[%emt 0:00:51]} 28. Qxd3 {[%emt 0:00:04]} Rxd3 {[%emt 0:00:05] KR-KR} 29. Ra4 {[%emt 0:01:48]} a6 {[%emt 0:00:09][%cal Ba7a6,Ba6a5,Ba5a4,Ba4a3,Ba3a2][%mdl 32]} 30. Rb4 {[%emt 0:02:02]} Rxa3 {[%emt 0:00:41]} 31. Rb6+ {[%emt 0:01:01]} Kg7 {[%emt 0:00:09]} 32. Rxb7 {[%emt 0:01:50]} a5 {[%emt 0:00:07]} 33. f4 {[%emt 0:00:51]} a4 {[%emt 0:00:06] [#]} 34. Ra7 {[%emt 0:01:09]} (34. Kg2 $142 $1) 34... Ra1+ {[%emt 0:00:54]} (34... Kg6 $142) 35. Kg2 {[%emt 0:03:43]} ({Don't take} 35. Ke2 Kg6 $16) 35... a3 {[%emt 0:01:53]} 36. Kf3 {[%emt 0:00:50]} a2 {[%emt 0:03:09]} 37. f5 {[%emt 0:00:24]} (37. Ke4 $16) 37... Kg8 $1 $11 {[%emt 0:06:57] The position is equal.} 38. Ra8+ {[%emt 0:00:18]} Kg7 {[%emt 0:00:09]} 39. Ra7 {[%emt 0:00:03] next e4 is good for White.} Kg8 $1 {[%emt 0:00:06]} 40. f6 {[%emt 0:00:00]} Rh1 $1 {[%emt 0:00:00]} 41. Rxa2 {[%emt 0:02:33] Black must now prevent Ra7.} Rxh3+ {[%emt 0:20:18]} 42. Kg4 {[%emt 0:04:59]} Rh2 {[%emt 0:00:09]} 43. Kg3 {[%emt 0:09:27]} Rh5 {[%emt 0:01:26]} 44. e4 {[%emt 0:11:21]} Kh7 $1 {[%emt 0:00:17]} 45. Re2 {[%emt 0:00:55] Threatens to win with e5.} Ra5 {[%emt 0:02:09]} 46. Kf4 {[%emt 0:00:42]} Kg6 {[%emt 0:02:44]} 47. e5 {[%emt 0:00:03]} Ra4+ {[%emt 0:00:30]} 48. Re4 {[%emt 0:00:16]} Ra2 {[%emt 0:01:36]} 49. f3 {[%emt 0:00:06]} Ra1 {[%emt 0:02:05]} 50. Rd4 {[%emt 0:01:19]} h5 {[%emt 0:00:19]} 51. Re4 {[%emt 0:02:45]} Rh1 {[%emt 0:01:32]} 52. Re2 {[%emt 0:02:50] Threatening mate with Rg2+.} Rh4+ {[%emt 0:00:12]} 53. Kg3 {[%emt 0:00:23]} Ra4 {[%emt 0:00:18]} 54. Rh2 {[%emt 0:00:49]} Rb4 {[%emt 0:00:42]} 55. Rh1 {[%emt 0:01:10]} Ra4 {[%emt 0:00:19]} 56. Rh4 {[%emt 0:00:51]} Ra5 {[%emt 0:00:07]} 57. Re4 {[%emt 0:00:23]} Kf5 {[%emt 0:01:43]} 58. e6 {[%emt 0:01:23]} Ra8 {[%emt 0:00:04]} 59. exf7 {[%emt 0:01:15] White wants to mate with Re8.} Rf8 {[%emt 0:00:05]} 60. Rf4+ {[%emt 0:01:34] Weighted Error Value: White=0.10 (very precise) /Black=0.06 (flawless)} 1/2-1/2

[Event "Prague Festival-Challengers 2022"]
[Site "Prague"]
[Date "2022.06.11"]
[Round "4.2"]
[White "Hracek, Zbynek"]
[Black "Abdusattorov, Nodirbek"]
[Result "1/2-1/2"]
[ECO "B41"]
[WhiteElo "2570"]
[BlackElo "2661"]
[Annotator "TA"]
[PlyCount "75"]
[EventDate "2022.06.07"]
[EventType "tourn"]
[EventCountry "CZE"]
[SourceTitle "playchess.com"]
[Source "ChessBase"]
[SourceQuality "1"]
[TimeControl "40/5400+30:1800+30"]

{[%evp 14,75,54,48,34,44,41,32,35,32,29,0,0,0,0,0,7,0,-12,-3,28,15,67,35,59,59,79,13,16,7,220,204,238,249,249,225,264,126,112,120,118,114,106,115,170,178,176,170,169,0,0,0,141,133,216,81,86,0,0,0,83,0,0,0]} 1. e4 {[%emt 0:00:05]} c5 {[%emt 0:00:51]} 2. Nf3 {[%emt 0:00:08][%cal Bg1f3,Bf3d4,Bd4c2][%mdl 32]} e6 {[%emt 0:00:31]} 3. d4 {[%emt 0:00:17]} cxd4 {[%emt 0:00:27]} 4. Nxd4 {[%emt 0:00:06]} a6 {[%emt 0:00:07]} 5. c4 {[%emt 0:06:18]} Nf6 {[%emt 0:00:09]} 6. Nc3 {[%emt 0:00:04]} Qc7 {[%emt 0:00:08]} 7. Be2 {[%emt 0:02:53]} Bb4 {[%emt 0:00:51]} 8. Nc2 {[%emt 0:01:05]} Bd6 {[%emt 0:00:09] Recently 8...Bxc3+ got a lot of attention. B41: Sicilian: Kan Variation: 5 c4.} 9. Be3 {[%emt 0:03:19] [#]} O-O $146 {[%emt 0:05:30]} ({Predecessor:} 9... Nc6 10. Qd2 O-O 11. f4 e5 12. f5 Nb4 13. a3 Nxc2+ 14. Qxc2 b5 15. c5 Bxc5 16. Nd5 Nxd5 17. Qxc5 Qxc5 18. Bxc5 {1-0 (60) Marek,M (2398)-Pomini,A (2273) Porto Carras 2015}) 10. Qd2 {[%emt 0:01:55]} Be5 $1 {[%emt 0:01:35] White is slightly better.} 11. Nd4 {[%emt 0:12:05]} Nc6 {[%emt 0:04:20]} 12. Rc1 {[%emt 0:02:02]} b6 {[%emt 0:03:30]} 13. g3 {[%emt 0:09:15]} Bb7 {[%emt 0:01:12]} 14. f3 {[%emt 0:02:12]} Rad8 {[%emt 0:19:30]} 15. Kf2 {[%emt 0:02:30]} Qb8 {[%emt 0:04:53]} 16. Rhd1 {[%emt 0:04:47]} Ne7 {[%emt 0:02:52]} 17. b4 {[%emt 0:04:10][%cal Bb2b4,Bb4c5,Bc5c6][%mdl 32]} Ne8 {[%emt 0:05:14]} (17... Rfe8 $11) 18. c5 {[%emt 0:13:33]} bxc5 {[%emt 0:04:24]} 19. bxc5 {[%emt 0:00:02]} d6 {[%emt 0:06:36]} 20. Na4 {[%emt 0:06:56] White is much more active.} (20. cxd6 $16 Nxd6 21. Qb2) 20... d5 $1 $11 {[%emt 0:08:06]} 21. Rb1 $36 {[%emt 0:06:31][%cal Oc5c6][%mdl 2048] White fights for an advantage.} dxe4 $2 {[%emt 0:04:39]} (21... Qc7 $1 $11 {and Black stays safe.}) 22. c6 $1 $18 {[%emt 0:04:40]} Bxd4 {[%emt 0:12:41]} 23. Rxb7 {[%emt 0:03:13]} Qc8 {[%emt 0:00:06] [#] Hoping for ...Nf5.} 24. Rxe7 {[%emt 0:01:50]} ({Wrong is} 24. Bxd4 $2 Nxc6 25. Qc2 (25. Rb4 $2 e5 $19) 25... Qxb7 $19) 24... exf3 {[%emt 0:01:25]} 25. Bxf3 {[%emt 0:05:37]} (25. Bxd4 $18 fxe2 26. Rc1 (26. Qxe2 Qxc6 27. Ba7 Nf6 $11)) 25... Bxe3+ $16 {[%emt 0:00:06]} 26. Qxe3 {[%emt 0:00:04] Strongly threatening Nb6.} Rxd1 {[%emt 0:00:09]} 27. Bxd1 {[%emt 0:00:06]} Qxc6 {[%emt 0:00:05]} 28. Qf3 {[%emt 0:04:47]} Qc4 {[%emt 0:02:04] [#]} (28... Qd6 $16 {was necessary.} 29. Rb7 Qd2+ 30. Kg1 Qxa2) 29. Bb3 $1 $18 {[%emt 0:01:42]} Qd4+ {[%emt 0:00:16]} 30. Kg2 {[%emt 0:00:11][%cal Of3f7] White wants to mate with Qxf7+!} Nf6 {[%emt 0:01:05]} 31. Qc3 $2 {[%emt 0:01:34]} (31. Qf4 $18 Qxf4 32. gxf4) 31... Qe4+ $11 {[%emt 0:01:25]} 32. Qf3 {[%emt 0:00:07] Threatens to win with Qxe4.} Qe5 {[%emt 0:00:48]} (32... Qd4 $1 $11) 33. Ra7 {[%emt 0:01:04]} Qd4 {[%emt 0:02:22]} (33... h5 $16) 34. Ra8 {[%emt 0:01:12]} (34. Rxa6 $18 {is more deadly. And now Qf4 would win.} g6 35. Rc6) 34... Qd2+ $16 {[%emt 0:01:51]} 35. Kh3 {[%emt 0:00:20]} Qh6+ {[%emt 0:01:06]} 36. Kg2 {[%emt 0:00:05] Rxf8+ is the strong threat.} Qd2+ {[%emt 0:00:04]} 37. Kh3 {[%emt 0:00:04]} ({White should play} 37. Kf1 $16) 37... Qh6+ $11 {[%emt 0:01:23]} 38. Kg2 {[%emt 0:00:05] Weighted Error Value: White=0.29 (precise) /Black=0.29 (precise)} 1/2-1/2

[Event "Prague Festival-Challengers 2022"]
[Site "Prague"]
[Date "2022.06.11"]
[Round "4.3"]
[White "Sasikiran, Krishnan"]
[Black "Pechac, Jergus"]
[Result "1/2-1/2"]
[ECO "C60"]
[WhiteElo "2651"]
[BlackElo "2597"]
[Annotator "TA"]
[PlyCount "75"]
[EventDate "2022.06.07"]
[EventType "tourn"]
[EventCountry "CZE"]
[SourceTitle "playchess.com"]
[Source "ChessBase"]
[SourceQuality "1"]
[TimeControl "40/5400+30:1800+30"]

{[%evp 9,75,34,26,26,35,34,34,32,31,0,0,0,0,0,0,0,28,35,27,21,27,25,33,19,28,25,33,29,30,0,0,0,24,22,16,17,15,12,11,12,16,15,17,16,17,19,41,41,41,37,31,37,41,31,41,41,41,41,41,41,41,41,41,41,48,28,25,25]} 1. e4 {[%emt 0:00:03]} e5 {[%emt 0:00:05]} 2. Nf3 {[%emt 0:00:07]} Nc6 {[%emt 0:00:04]} 3. Bb5 {[%emt 0:00:09]} Nge7 {[%emt 0:00:06]} 4. Nc3 {[%emt 0:00:18]} Ng6 {[%emt 0:00:07]} 5. d4 {[%emt 0:00:16]} Nxd4 {[%emt 0:00:05]} 6. Nxd4 {[%emt 0:00:13] C60: Ruy Lopez: Unusual Black 3rd moves and 3...g6.} exd4 {[%emt 0:00:06]} 7. Qxd4 {[%emt 0:00:09]} c6 {[%emt 0:00:04]} 8. Be2 {[%emt 0:00:13] White is slightly better.} Qb6 {[%emt 0:00:06]} 9. Be3 {[%emt 0:00:14]} Qxb2 {[%emt 0:00:06]} 10. Rb1 {[%emt 0:00:13]} Qa3 {[%emt 0:00:05] [#]} (10... Qxc2 $2 11. Rb3 Be7 12. Bd1 $18) 11. f4 $146 {[%emt 0:00:27]} ({Predecessor:} 11. O-O Qd6 12. Qc4 Nf4 13. Rfd1 Qe5 14. Bg4 Be7 15. g3 Ne6 16. f4 Qa5 17. Kg2 {1-0 (42) De la Villa Garcia,J (2485)-Allan,D (2310) Szirak 1987}) 11... Qd6 {[%emt 0:00:13]} 12. O-O {[%emt 0:00:31]} f6 {[%emt 0:00:10] Inhibits e5.} 13. Bh5 {[%emt 0:00:34] Black must now prevent f5.} Qxd4 {[%emt 0:00:22]} 14. Bxd4 {[%emt 0:00:06] [#] And now f5 would win.} Kd8 {[%emt 0:00:06]} 15. e5 {[%emt 0:00:15]} fxe5 {[%emt 0:00:09]} 16. fxe5 {[%emt 0:00:06]} b6 {[%emt 0:00:10]} 17. Rf7 {[%emt 0:01:52][%cal Oe5e6][%mdl 1024] White has compensation.} Ke8 {[%emt 0:00:39]} 18. Rf2 {[%emt 0:00:27][%cal Bf7f2,Bf2d2,Bd2d6][%mdl 32]} Bb7 {[%emt 0:02:26]} 19. Rd2 {[%emt 0:02:53]} Be7 {[%emt 0:08:49]} 20. Re1 {[%emt 0:01:23]} Rf8 {[%emt 0:06:14]} 21. Ne4 {[%emt 0:13:44] [#] Threatens to win with Nd6+.} Rf7 {[%emt 0:09:10]} 22. Bc3 {[%emt 0:19:19]} Rd8 {[%emt 0:13:12]} 23. Nd6+ {[%emt 0:13:51]} Bxd6 {[%emt 0:00:23]} 24. Rxd6 {[%emt 0:00:12]} Ba6 {[%emt 0:06:50]} 25. e6 {[%emt 0:15:26]} Re7 {[%emt 0:00:12]} 26. exd7+ {[%emt 0:08:28]} Rdxd7 {[%emt 0:00:09]} 27. Rxc6 {[%emt 0:00:31]} Bb7 {[%emt 0:11:09]} 28. Bxg6+ {[%emt 0:05:38]} hxg6 {[%emt 0:00:06]} 29. Rxe7+ {[%emt 0:00:26]} Kxe7 {[%emt 0:05:25]} 30. Rxg6 $14 {[%emt 0:00:12][%mdl 4096] Endgame KRB-KRB} Kf8 {[%emt 0:00:05]} 31. Rg4 {[%emt 0:03:44]} Bc8 {[%emt 0:05:08] ...Rd1+ is the strong threat.} 32. Rg3 {[%emt 0:02:30]} Rf7 {[%emt 0:06:17]} 33. Be5 {[%emt 0:06:10]} Bf5 {[%emt 0:00:24]} 34. c3 {[%emt 0:00:48]} g6 {[%emt 0:00:46]} 35. h3 {[%emt 0:01:09]} Ke7 {[%emt 0:00:27]} 36. Re3 {[%emt 0:02:41]} Ke6 {[%emt 0:00:59]} 37. c4 {[%emt 0:01:26]} Kd7 {[%emt 0:00:32]} 38. g4 {[%emt 0:00:50] Weighted Error Value: White=0.03 (flawless) /Black=0.03 (flawless)} 1/2-1/2

[Event "Prague Festival-Challengers 2022"]
[Site "Prague"]
[Date "2022.06.11"]
[Round "4.4"]
[White "Warmerdam, Max"]
[Black "Michalik, Peter"]
[Result "1-0"]
[ECO "D35"]
[WhiteElo "2614"]
[BlackElo "2579"]
[Annotator "TA"]
[PlyCount "199"]
[EventDate "2022.06.07"]
[EventType "tourn"]
[EventCountry "CZE"]
[SourceTitle "playchess.com"]
[Source "ChessBase"]
[SourceQuality "1"]
[TimeControl "40/5400+30:1800+30"]

{[%evp 28,199,10,0,17,16,30,0,23,22,14,20,22,19,102,90,226,223,250,234,249,168,172,189,192,149,134,123,138,110,112,136,139,114,106,106,104,60,124,29,19,-4,-8,-9,40,-6,10,0,0,0,0,0,16,0,0,8,8,8,8,8,8,8,8,4,64,64,63,62,63,62,344,27,41,41,41,41,41,0,0,0,737,545,771,755,700,543,527,500,4449,4449,4449,3847,4449,4449,4449,4235,4449,4441,4187,474,4314,4441,4441,4441,4441,4440,4440,4440,4433,4409,4373,4294,4257,4250,4250,4235,6157,49,49,0,0,0,4212,4187,4187,4187,4179,4179,4179,4179,4172,4172,4172,4172,4172,4164,4164,3489,3464,3464,1171,2322,29946,29946,5789,5322,5057,4406,7203,6938,3894,3879,4366,4273,3858,3851,3825,3799,29969,29968,29961,29949,29945,3402,29969,29969,29983,29984,29984,29985,29985,29986,29989,29990]} 1. d4 {[%emt 0:00:06]} Nf6 {[%emt 0:00:06]} 2. c4 {[%emt 0:00:05]} e6 {[%emt 0:00:05]} 3. Nf3 {[%emt 0:00:05]} d5 {[%emt 0:00:05]} 4. Nc3 {[%emt 0:00:06]} Be7 {[%emt 0:00:27]} 5. cxd5 {[%emt 0:00:38]} exd5 {[%emt 0:00:09]} 6. Bf4 {[%emt 0:00:05]} c6 {[%emt 0:01:17]} 7. e3 {[%emt 0:01:29]} Bf5 {[%emt 0:01:30]} 8. Nh4 {[%emt 0:00:44]} Bg4 {[%emt 0:02:44]} 9. Qc2 {[%emt 0:01:17]} Nh5 {[%emt 0:02:12]} 10. h3 {[%emt 0:03:23]} Be6 {[%emt 0:02:57]} 11. Nf3 {[%emt 0:02:33]} Nxf4 {[%emt 0:14:23]} 12. exf4 {[%emt 0:00:05]} g6 {[%emt 0:01:40]} 13. Bd3 {[%emt 0:02:06]} Qd6 {[%emt 0:01:49]} 14. Ne2 {[%emt 0:17:12]} Nd7 {[%emt 0:02:09]} 15. O-O {[%emt 0:00:55]} Nf6 {[%emt 0:00:44]} 16. Ne5 {[%emt 0:04:49]} Nd7 {[%emt 0:02:22]} 17. Nf3 {[%emt 0:14:52]} Nf6 {[%emt 0:00:15]} 18. f5 {[%emt 0:00:40]} gxf5 {[%emt 0:23:23]} 19. Bxf5 {[%emt 0:00:05]} Bxf5 {[%emt 0:00:05]} 20. Qxf5 {[%emt 0:00:07]} Nd7 {[%emt 0:00:07]} (20... Ne4 $11) 21. Ng3 $16 {[%emt 0:02:55]} O-O-O {[%emt 0:21:47]} (21... Qg6 $16) 22. Ne5 $18 {[%emt 0:01:15]} ({Don't take} 22. Qxf7 $6 Rdf8 23. Qh5 Qg6 $14) 22... Rdf8 {[%emt 0:03:31]} 23. Nxf7 {[%emt 0:00:49]} Qf6 {[%emt 0:00:25]} 24. Qxf6 {[%emt 0:00:20]} Bxf6 {[%emt 0:00:05]} 25. Nxh8 {[%emt 0:00:04]} Bxd4 {[%emt 0:00:06]} 26. Rae1 {[%emt 0:02:31]} Bxb2 {[%emt 0:01:57]} 27. Re7 {[%emt 0:02:53]} Rxh8 {[%emt 0:00:12]} 28. Nf5 {[%emt 0:01:13]} Ba3 {[%emt 0:00:16]} 29. Rg7 {[%emt 0:02:00]} Bf8 {[%emt 0:01:47]} 30. Rf7 {[%emt 0:01:24]} Ne5 {[%emt 0:00:11]} 31. Rf6 {[%emt 0:00:05]} Bc5 {[%emt 0:00:49]} 32. Kh2 {[%emt 0:01:15]} d4 {[%emt 0:02:34]} (32... Rd8 $14) 33. Rc1 {[%emt 0:05:09]} (33. Nd6+ $16 Kc7 34. Ne4) 33... Nd3 $11 {[%emt 0:01:57]} 34. Rxc5 {[%emt 0:17:55]} (34. Rb1 {is interesting.} Rd8 35. Kg1 Rd7 36. Ng3) 34... Nxc5 {[%emt 0:00:06]} 35. Nxd4 {[%emt 0:00:02]} Nd7 {[%emt 0:02:33]} (35... Ne4 $11 36. Rf4 Nd6) 36. Rf7 {[%emt 0:00:26]} (36. Rh6 $14 {deserves consideration.}) 36... h5 {[%emt 0:00:12]} (36... c5 $5 {[%cal Rc5d4]} 37. Nf5 Rf8 38. Nd6+ Kc7 39. Nb5+ Kd8 40. Rxf8+ Nxf8 $11) 37. f4 {[%emt 0:00:57]} a6 {[%emt 0:03:38]} 38. g3 {[%emt 0:07:08]} c5 {[%emt 0:00:21]} 39. Nf5 {[%emt 0:00:03]} Kc7 {[%emt 0:00:36]} 40. Kg2 {[%emt 0:00:00]} c4 {[%emt 0:00:00]} 41. Ne3 {[%emt 0:01:34]} b5 {[%emt 0:01:26]} 42. g4 {[%emt 0:00:20]} hxg4 {[%emt 0:06:10]} 43. hxg4 {[%emt 0:00:05]} Kd6 {[%emt 0:01:21]} 44. g5 {[%emt 0:01:31]} c3 $1 {[%emt 0:01:47]} 45. g6 {[%emt 0:09:20]} Rg8 {[%emt 0:02:14]} (45... Rc8 $11) 46. f5 $14 {[%emt 0:00:25]} Ne5 {[%emt 0:01:28]} 47. Rf6+ $1 {[%emt 0:12:27]} Kc5 {[%emt 0:00:29]} 48. Re6 {[%emt 0:00:38]} Nc6 $2 {[%emt 0:08:27][%mdl 8192]} (48... Kd4 $1 $14) 49. Nc2 $2 {[%emt 0:04:34]} ({White should play} 49. Kh3 $18) 49... a5 $11 {[%emt 0:04:13]} 50. Kf3 {[%emt 0:00:28]} Nd4+ $1 {[%emt 0:07:33]} 51. Nxd4 {[%emt 0:00:06]} Kxd4 {[%emt 0:00:03]} 52. Ke2 {[%emt 0:08:55]} b4 {[%emt 0:00:47]} 53. f6 {[%emt 0:03:29]} Rxg6 $2 {[%emt 0:02:19][%mdl 8192]} (53... c2 $11 54. Kd2 Rxg6) 54. Rd6+ $18 {[%emt 0:00:04]} Ke4 {[%emt 0:03:54]} 55. f7 {[%emt 0:00:13]} Rxd6 {[%emt 0:02:21]} 56. f8=Q {[%emt 0:00:06]} Rd2+ {[%emt 0:00:02]} 57. Ke1 {[%emt 0:00:05]} Rb2 {[%emt 0:00:15]} (57... Rd5 $142 58. Qe7+ Kd4) 58. Qe7+ {[%emt 0:00:56]} Kd3 {[%emt 0:00:10]} 59. Qd6+ {[%emt 0:00:05]} Ke3 {[%emt 0:00:10]} 60. Qe5+ {[%emt 0:00:50]} Kd3 {[%emt 0:00:06]} 61. Qf5+ {[%emt 0:00:10]} Ke3 {[%emt 0:00:14]} 62. Kd1 {[%emt 0:00:15]} a4 {[%emt 0:00:29]} 63. Qe6+ {[%emt 0:00:06]} (63. Qe5+ $142 Kd3 64. Qb5+ Ke4 65. Qxa4) 63... Kd3 {[%emt 0:00:05]} (63... Kf4 $142 64. Qc4+ Ke5) 64. Qd7+ $18 {[%emt 0:00:04]} Kc4 {[%emt 0:04:15]} 65. Qc6+ {[%emt 0:00:12]} Kd3 {[%emt 0:00:23]} 66. Qb5+ {[%emt 0:00:04]} Kd4 {[%emt 0:00:44]} 67. Qxa4 {[%emt 0:00:04]} Kc4 {[%emt 0:00:19]} 68. Qc6+ {[%emt 0:00:08]} Kd4 {[%emt 0:00:04]} 69. Qb5 {[%emt 0:00:39]} Rd2+ {[%emt 0:00:40]} 70. Kc1 {[%emt 0:00:05]} Rb2 {[%emt 0:00:02]} 71. Qb6+ {[%emt 0:00:17]} Kd3 {[%emt 0:00:21]} 72. Qc5 $2 {[%emt 0:00:15]} (72. Qa6+ $18 Ke3 73. Qc4) 72... Rc2+ $14 {[%emt 0:00:12]} 73. Kb1 {[%emt 0:00:38]} (73. Kd1 $1 $14 Rd2+ 74. Kc1 Rc2+ 75. Kb1 Rb2+ 76. Kc1 Rc2+) 73... Rb2+ $11 {[%emt 0:00:05]} 74. Ka1 {[%emt 0:00:20]} Kd2 $2 {[%emt 0:02:17][%mdl 8192]} (74... Re2 $11 75. Qb5+ Kd2 76. Qd7+ Kc2 77. Qh7+ Kd2 78. Qh6+ Kc2 79. Qh7+ Kd2 80. Qd7+ Kc2 81. Qf5+ Kd2 82. Qg5+ Kc2) 75. Qf2+ {[%emt 0:01:16]} Kd3 {[%emt 0:00:11]} 76. Qf1+ {[%emt 0:00:22]} Kd4 {[%emt 0:00:31]} 77. Qf3 {[%emt 0:00:36]} Kc4 {[%emt 0:00:40]} 78. Qe4+ {[%emt 0:00:19]} Kc5 {[%emt 0:00:03]} 79. Qd3 {[%emt 0:00:15]} Rd2 {[%emt 0:00:31]} 80. Qe3+ {[%emt 0:00:04]} Kb5 {[%emt 0:00:26]} 81. Kb1 {[%emt 0:00:54]} Rd1+ {[%emt 0:00:23]} 82. Kc2 {[%emt 0:00:05]} Rd2+ {[%emt 0:00:03]} 83. Kc1 {[%emt 0:00:04]} Kc4 {[%emt 0:01:39]} 84. Qb6 {[%emt 0:00:22]} Rb2 {[%emt 0:00:15]} 85. Qc6+ {[%emt 0:00:09]} Kd4 {[%emt 0:00:43]} 86. Qb5 {[%emt 0:00:05]} Ke4 {[%emt 0:00:36]} 87. Qc5 {[%emt 0:00:09]} Kd3 {[%emt 0:00:17]} 88. Qd5+ {[%emt 0:00:04]} Ke3 {[%emt 0:00:36]} 89. Qc4 {[%emt 0:00:04]} Kf2 {[%emt 0:00:31]} 90. a3 {[%emt 0:01:39]} bxa3 {[%emt 0:00:04]} 91. Qxc3 {[%emt 0:00:04]} Re2 {[%emt 0:00:05]} 92. Qc5+ {[%emt 0:00:04]} ({Not} 92. Qxa3 Re1+ 93. Kc2 Re2+ 94. Kd1 Re1+ 95. Kc2 Re2+ 96. Kd1 Re1+ 97. Kc2 $11) 92... Kg2 {[%emt 0:01:24]} 93. Qxa3 {[%emt 0:00:06]} Kf2 {[%emt 0:00:16]} 94. Qc5+ {[%emt 0:00:06]} Kf3 {[%emt 0:00:08]} 95. Kd1 {[%emt 0:00:11]} (95. Qf5+ $142 Ke3 96. Qg4 Rf2 97. Qe6+ Kf4 98. Qf6+ Kg3 99. Qg5+ Kf3 100. Qh5+ Kg3 101. Kd1) 95... Rf2 {[%emt 0:00:29]} 96. Qf5+ {[%emt 0:00:38]} Ke3 {[%emt 0:00:24]} 97. Qe5+ {[%emt 0:00:04]} Kf3 {[%emt 0:00:14]} 98. Ke1 {[%emt 0:00:07]} Rg2 {[%emt 0:00:09]} 99. Qf5+ {[%emt 0:00:44]} Ke3 {[%emt 0:00:45]} 100. Qh3+ {[%emt 0:00:27]} 1-0